bitfinex-derivatives/quotes_ETHF0:USTF0_20250316
["timestamp","ask_amount","ask_price","bid_price","bid_amount"]
[1742139403670,1.05605,1894.0,1893.9,3.89722414]
[1742139403966,1.371,1894.0,1893.9,4.95332414]
[1742139404165,0.00792414,1894.2,1894.1,1.05599]
[1742139404469,1.06385414,1894.2,1894.1,1.05599]
[1742139405171,0.00792414,1894.2,1894.0,1.05602]
[1742139405367,1.06389414,1894.2,1894.0,1.05602]
[1742139405870,1.06389414,1894.2,1894.1,1.05599]
[1742139406258,0.00792414,1894.2,1894.0,1.05602]
[1742139406468,1.06389414,1894.2,1894.1,1.05599]
[1742139406770,1.06389414,1894.2,1894.0,1.05601]
[1742139406969,1.06389414,1894.2,1894.1,1.05599]
[1742139407776,1.06389414,1894.2,1893.9,3.89722414]
[1742139407777,1.05599,1894.1,1894.0,1.056]
[1742139408570,1.05605,1894.0,1893.9,3.89722414]
[1742139408963,1.05605,1894.0,1893.9,4.95332414]
[1742139409568,1.05605,1894.0,1893.9,3.21572414]
[1742139409767,1.05605,1894.0,1893.9,4.27182414]
[1742139410366,2.41143,1894.1,1893.9,1.06402414]
[1742139410565,1.05605,1894.0,1893.9,0.00792414]
[1742139410767,1.05605,1894.0,1893.9,1.38392414]
[1742139411277,1.05605,1894.0,1893.9,2.44002414]
[1742139411571,1.05605,1894.0,1893.9,1.38392414]
[1742139411869,1.05605,1894.0,1893.9,0.00792414]
[1742139412881,1.72555,1894.0,1893.9,0.00792414]
[1742139415282,1.05627,1893.6,1893.5,3.2078]
[1742139415481,1.05625,1893.7,1893.6,1.05624]
[1742139416575,1.05617,1893.8,1893.7,1.05617]
[1742139416772,2.45547,1893.8,1893.7,1.05617]
[1742139416977,1.05621,1893.7,1893.6,2.47162]
[1742139417279,2.45551,1893.7,1893.6,2.47162]
[1742139417579,2.45551,1893.7,1893.6,1.4154]
[1742139419778,2.45551,1893.7,1893.6,2.47167]
[1742139420174,2.45551,1893.7,1893.6,1.4154]
[1742139420780,2.45551,1893.7,1893.6,2.47167]
[1742139421079,2.45551,1893.7,1893.6,1.4154]
[1742139421781,2.45551,1893.7,1893.6,2.47167]
[1742139421979,1.05627,1893.6,1893.5,0.00792414]
[1742139422183,3.08017,1893.6,1893.5,0.00792414]
[1742139423285,3.08017,1893.6,1893.5,1.45082414]
[1742139425183,2.0239,1893.6,1893.5,2.50714414]
[1742139426481,0.6723,1893.8,1893.5,4.65862414]
[1742139426691,2.1363,1893.8,1893.6,2.0372]
[1742139426981,0.00792414,1894.2,1893.8,1.05616]
[1742139427170,1.05605,1894.0,1893.9,2.42559]
[1742139427579,1.05605,1894.0,1893.9,2.4256]
[1742139427779,2.52005,1894.0,1893.9,2.4256]
[1742139428081,4.10421,1894.0,1893.5,3.59793033]
[1742139428281,1.05621,1893.7,1893.6,1.3941]
[1742139429183,2.51651,1893.7,1893.6,1.3941]
[1742139429483,1.4603,1893.7,1893.6,2.45037]
[1742139430076,1.05609,1894.0,1893.9,1.0561]
[1742139430377,2.51639,1894.0,1893.9,1.0561]
[1742139431681,1.0561,1893.9,1893.8,1.3941]
[1742139431885,1.05618,1893.8,1893.7,2.4722]
[1742139432185,1.4306,1893.9,1893.8,1.05616]
[1742139432186,2.48675,1893.9,1893.8,1.05616]
[1742139432484,2.48675,1893.9,1893.8,2.47216]
[1742139433283,1.4306,1893.9,1893.8,2.47216]
[1742139433584,2.4867,1893.9,1893.8,2.47216]
[1742139433885,1.4306,1893.9,1893.8,2.47216]
[1742139434486,2.49263,1894.1,1894.0,1.05605]
[1742139434688,3.88793,1894.1,1894.0,1.05605]
[1742139435389,1.0561,1893.9,1893.8,1.05612]
[1742139435683,1.0561,1893.9,1893.8,2.42492]
[1742139435880,1.0561,1893.9,1893.8,1.3688]
[1742139436476,1.0561,1893.9,1893.8,2.42496]
[1742139436674,2.45139,1894.0,1893.9,1.0561]
[1742139436874,2.45139,1894.0,1893.9,1.3688]
[1742139437683,2.45139,1894.0,1893.9,2.4249]
[1742139437883,2.45139,1894.0,1893.9,1.3688]
[1742139438081,1.05615,1893.9,1893.8,1.05615]
[1742139438283,2.42955,1893.9,1893.8,1.05615]
[1742139439090,2.42955,1893.9,1893.8,2.39645]
[1742139439676,1.3734,1893.9,1893.8,2.39645]
[1742139440291,2.4295,1893.9,1893.8,2.39645]
[1742139440485,2.4295,1893.9,1893.8,1.3403]
[1742139441293,2.4295,1893.9,1893.8,2.39646]
[1742139442589,4.5812,1893.9,1893.6,1.05627]
[1742139442784,2.5076,1893.8,1893.7,1.4014]
[1742139443187,2.5076,1893.8,1893.7,2.45761]
[1742139443387,2.5076,1893.8,1893.7,1.4014]
[1742139443695,2.5076,1893.8,1893.7,2.45761]
[1742139443895,1.4514,1893.8,1893.7,2.45761]
[1742139445289,2.50756,1893.8,1893.7,2.45761]
[1742139446283,2.50756,1893.8,1893.7,1.4014]
[1742139446890,1.05627,1893.6,1893.5,0.00792414]
[1742139447197,4.26407,1893.6,1893.5,0.00792414]
[1742139447695,5.59927,1893.6,1893.5,0.00792414]
[1742139448504,2.39147,1893.6,1893.5,0.00792414]
[1742139449997,2.39147,1893.6,1893.5,1.38172414]
[1742139451397,1.3746,1893.7,1893.5,1.38172414]
[1742139451700,1.05614,1893.9,1893.8,1.05616]
[1742139451901,1.4635,1893.9,1893.6,2.7836]
[1742139452093,1.05621,1893.7,1893.6,2.46603]
[1742139452297,1.0562,1893.8,1893.7,1.0562]
[1742139453201,2.51965,1893.9,1893.8,1.05616]
[1742139453393,1.4635,1893.9,1893.8,1.05616]
[1742139453703,2.5196,1893.9,1893.8,1.05616]
[1742139454804,2.51964,1893.9,1893.8,1.05616]
[1742139455002,1.4635,1893.9,1893.8,1.05616]
[1742139457796,2.5196,1893.9,1893.8,1.05616]
[1742139458193,1.05616,1893.8,1893.7,1.05621]
[1742139458399,2.43046,1893.8,1893.7,1.05621]
[1742139459206,1.3743,1893.8,1893.7,1.05621]
[1742139460507,2.43046,1893.8,1893.7,1.05621]
[1742139460699,1.3743,1893.8,1893.7,1.05621]
[1742139461403,2.49439,1894.0,1893.9,1.0561]
[1742139461901,1.4383,1894.0,1893.6,4.05041]
[1742139462105,1.05611,1893.9,1893.8,1.05611]
[1742139462703,2.50691,1893.9,1893.8,1.05611]
[1742139462897,1.4508,1893.9,1893.8,1.05611]
[1742139463100,0.7235,1894.0,1893.9,1.0561]
[1742139463602,2.1743,1894.0,1893.9,1.0561]
[1742139464104,1.4508,1894.0,1893.9,1.0561]
[1742139467513,1.4508,1894.0,1893.9,4.2639]
[1742139468113,1.05601,1894.1,1894.0,1.05605]
[1742139468313,2.46031,1894.1,1894.0,1.05605]
[1742139468510,1.4043,1894.1,1894.0,1.05605]
[1742139470007,0.00792414,1894.2,1894.1,1.05599]
[1742139470204,0.6846,1894.7,1894.3,2.63963]
[1742139470520,1.05554,1894.9,1894.8,1.0556]
[1742139470703,1.05553,1895.0,1894.8,1.0556]
[1742139470909,0.6626,1894.9,1894.8,1.0556]
[1742139471209,1.71814,1894.9,1894.8,1.0556]
[1742139471514,0.6626,1894.9,1894.8,1.0556]
[1742139472316,0.6626,1894.9,1894.7,2.40034414]
[1742139472519,0.6708,1894.8,1894.7,2.40034414]
[1742139477630,0.6626,1894.9,1894.8,1.0556]
[1742139477918,1.3617,1894.9,1894.8,2.4733]
[1742139480313,1.3617,1894.9,1894.8,5.6811]
[1742139481019,2.7323,1894.9,1894.8,5.6811]
[1742139481524,0.00792414,1895.0,1894.9,1.05554]
[1742139481716,0.00792414,1895.0,1894.9,2.48104]
[1742139485219,1.38032414,1895.0,1894.9,2.48104]
[1742139487929,1.0556,1894.8,1894.7,1.06353414]
[1742139488325,3.08017,1894.9,1894.8,1.0556]
[1742139488532,2.0246,1894.9,1894.8,1.0556]
[1742139488723,1.0556,1894.8,1894.7,0.00792414]
[1742139488923,3.1274,1894.8,1894.7,0.00792414]
[1742139490123,1.05584,1894.4,1894.2,7.12606801]
[1742139490328,1.05576,1894.6,1894.5,1.05575]
[1742139490532,2.0529,1894.6,1894.5,1.05575]
[1742139490829,2.0529,1894.6,1894.4,2.43128]
[1742139490830,1.05577,1894.5,1894.4,2.43128]
[1742139491032,2.41737,1894.5,1894.4,2.43128]
[1742139491247,1.05582,1894.4,1894.3,1.05584]
[1742139491418,1.05582,1894.4,1894.3,2.43926414]
[1742139491419,2.41742,1894.4,1894.3,2.43926414]
[1742139492219,1.3616,1894.4,1894.3,2.43926414]
[1742139494431,1.3616,1894.4,1894.3,1.38342414]
[1742139494636,2.41742,1894.4,1894.3,0.00792414]
[1742139494830,1.05593,1894.2,1894.1,1.3555]
[1742139495030,1.05593,1894.2,1894.0,4.26381]
[1742139495231,1.05593,1894.2,1894.1,1.3761]
[1742139495432,1.05599,1894.1,1894.0,3.2078]
[1742139496234,1.05599,1894.1,1894.0,4.5839]
[1742139497237,1.05597,1894.2,1894.0,5.63991]
[1742139497441,1.05597,1894.2,1894.1,1.3761]
[1742139498035,0.7007,1894.3,1894.1,1.3761]
[1742139498036,1.75662,1894.3,1894.1,1.3761]
[1742139498236,1.05593,1894.2,1894.1,1.3761]
[1742139499133,1.05599,1894.1,1894.0,4.26381]
[1742139499335,1.05599,1894.1,1894.0,5.62341]
[1742139499832,1.05605,1894.0,1893.9,0.00792414]
[1742139500137,1.77335,1894.0,1893.9,0.00792414]
[1742139502745,1.05636,1893.5,1893.3,1.4358]
[1742139503042,1.05636,1893.5,1893.4,1.4598]
[1742139503742,2.64055,1893.7,1893.1,3.2078]
[1742139503930,1.05638,1893.4,1893.3,0.00792414]
[1742139504845,1.05638,1893.4,1893.3,1.41502414]
[1742139505438,1.05638,1893.4,1893.3,0.00792414]
[1742139505642,4.26418,1893.4,1893.3,0.00792414]
[1742139509252,4.26418,1893.4,1893.3,1.06436414]
[1742139509453,4.26418,1893.4,1893.3,2.39636414]
[1742139510553,4.26418,1893.4,1893.3,1.33992414]
[1742139511055,5.58978,1893.4,1893.3,1.33992414]
[1742139511351,2.38198,1893.4,1893.3,1.33992414]
[1742139512251,2.38198,1893.4,1893.3,2.39636414]
[1742139512657,2.38198,1893.4,1893.3,1.33992414]
[1742139514762,2.38198,1893.4,1893.3,2.39636414]
[1742139515957,2.38198,1893.4,1893.3,1.33992414]
[1742139516161,2.38198,1893.4,1893.3,2.39636414]
[1742139516558,2.38198,1893.4,1893.3,1.33992414]
[1742139516765,2.38198,1893.4,1893.3,0.00792414]
[1742139516960,2.38198,1893.4,1893.3,1.06436414]
[1742139520166,2.38198,1893.4,1893.3,0.00792414]
[1742139520555,2.38198,1893.4,1893.3,1.44522414]
[1742139525773,2.38198,1893.4,1893.3,2.50166414]
[1742139526573,2.38198,1893.4,1893.3,1.44522414]
[1742139531472,0.00792414,1893.6,1893.5,1.05632]
[1742139531871,0.00792414,1893.6,1893.5,2.51222]
[1742139532467,2.1502,1894.2,1893.5,3.95590619]
[1742139532679,1.05603,1894.1,1894.0,1.05599]
[1742139533272,1.05603,1894.1,1894.0,2.51189]
[1742139533775,3.21411414,1894.2,1894.1,1.05599]
[1742139533975,3.21411414,1894.2,1894.1,2.51189]
[1742139534480,3.21411414,1894.2,1894.1,1.4559]
[1742139535372,3.21411414,1894.2,1894.1,2.51189]
[1742139535974,1.06391414,1894.2,1894.1,2.51189]
[1742139536175,2.51441414,1894.2,1894.1,2.51189]
[1742139538268,2.51441414,1894.2,1894.1,1.4559]
[1742139538472,2.64012,1894.0,1893.6,6.7338]
[1742139538672,1.05616,1893.8,1893.7,1.3681]
[1742139539373,1.05627,1893.6,1893.5,4.26408]
[1742139539576,1.05627,1893.6,1893.5,5.63218]
[1742139539884,1.05625,1893.7,1893.6,1.05624]
[1742139540080,1.05625,1893.7,1893.6,2.42434]
[1742139540774,1.05625,1893.7,1893.6,1.3681]
[1742139541573,3.97482,1893.8,1893.4,1.05636]
[1742139541777,2.38197,1893.6,1893.5,1.4632]
[1742139543881,1.3257,1893.6,1893.5,2.51952]
[1742139544091,1.05627,1893.6,1893.5,2.51948]
[1742139544278,2.48226,1893.7,1893.6,1.05627]
[1742139544485,2.48221,1893.7,1893.6,2.48707]
[1742139546087,2.48221,1893.7,1893.6,1.4308]
[1742139548488,1.05632,1893.5,1893.4,4.26414]
[1742139548996,2.38851,1893.6,1893.5,1.05632]
[1742139549691,1.3322,1893.6,1893.5,1.05632]
[1742139549891,1.3322,1893.6,1893.5,2.38782]
[1742139550092,2.38847,1893.6,1893.5,1.3315]
[1742139551197,1.05638,1893.4,1893.3,0.00792414]
[1742139551493,1.05638,1893.4,1893.3,1.33942414]
[1742139551886,2.51788,1893.4,1893.3,1.33942414]
[1742139552789,2.51788,1893.4,1893.3,0.00792414]
[1742139556898,2.51788,1893.4,1893.3,1.39692414]
[1742139558203,2.51788,1893.4,1893.3,0.00792414]
[1742139558599,1.05657,1893.1,1892.9,6.7338]
[1742139558804,1.05672,1892.8,1892.7,3.2078]
[1742139559105,2.7292,1893.0,1892.9,1.05666]
[1742139559404,1.3201,1893.0,1892.9,1.05666]
[1742139559804,2.3767,1893.0,1892.9,1.05666]
[1742139560103,1.3201,1893.0,1892.8,1.44082414]
[1742139560297,2.37672,1893.0,1892.9,1.05666]
[1742139561005,1.3201,1893.0,1892.8,1.44082414]
[1742139561211,2.37673,1893.0,1892.9,1.05666]
[1742139561408,1.05666,1892.9,1892.8,2.49749414]
[1742139561701,2.37675,1893.0,1892.9,1.05666]
[1742139561906,2.37675,1893.0,1892.9,2.48956]
[1742139563007,2.37675,1893.0,1892.9,1.4329]
[1742139563207,1.05666,1892.9,1892.8,1.06458414]
[1742139563411,3.13476,1892.9,1892.8,1.37512414]
[1742139563610,2.0781,1892.9,1892.5,3.2078]
[1742139563908,3.2078,1892.7,1892.3,3.2078]
[1742139564209,3.2078,1892.7,1892.4,2.42412]
[1742139564210,1.05692,1892.5,1892.4,2.42412]
[1742139564705,1.05692,1892.5,1892.4,1.3672]
[1742139564903,1.74322,1892.5,1892.4,2.42414]
[1742139565410,0.6863,1892.5,1892.4,2.42414]
[1742139565704,1.74318,1892.5,1892.4,2.42414]
[1742139566111,1.74318,1892.5,1892.4,1.3672]
[1742139566503,1.3918,1892.6,1892.5,1.05688]
[1742139567002,1.3918,1892.6,1892.4,1.3672]
[1742139567202,2.44868,1892.6,1892.5,1.05688]
[1742139569612,1.3918,1892.6,1892.5,1.05688]
[1742139569807,2.44863,1892.6,1892.5,1.05688]
[1742139571211,1.3918,1892.6,1892.5,1.05688]
[1742139571513,1.4084,1892.8,1892.7,1.05677]
[1742139571811,1.05672,1892.9,1892.8,1.0567]
[1742139572312,0.7166,1893.0,1892.9,1.05666]
[1742139572504,4.27231414,1893.1,1893.0,1.0566]
[1742139572705,0.00792414,1893.1,1893.0,1.0566]
[1742139572899,2.52737414,1893.1,1893.0,1.0566]
[1742139573104,2.52737414,1893.1,1893.0,2.4754]
[1742139573308,1.47082414,1893.1,1893.0,2.4754]
[1742139573612,1.47082414,1893.1,1893.0,2.90240591]
[1742139573810,0.00792414,1893.1,1893.0,6.3785]
[1742139574007,0.00792414,1893.1,1893.0,5.6832]
[1742139576911,0.69922414,1893.1,1893.0,5.6832]
[1742139577107,0.00792414,1893.1,1893.0,5.6832]
[1742139577310,1.43302414,1893.1,1893.0,5.6832]
[1742139578009,2.48957414,1893.1,1893.0,5.6832]
[1742139579318,1.43302414,1893.1,1893.0,5.6832]
[1742139579611,2.48957414,1893.1,1893.0,5.6832]
[1742139579813,1.05669,1892.9,1892.8,1.05668]
[1742139580609,1.05672,1892.8,1892.7,4.58276]
[1742139580826,0.7288,1892.9,1892.6,8.11250619]
[1742139581017,1.05677,1892.8,1892.7,1.05675]
[1742139581210,2.43127,1892.8,1892.7,2.43225]
[1742139581815,2.43127,1892.8,1892.7,1.3755]
[1742139582019,2.43127,1892.8,1892.6,3.2078]
[1742139582020,1.05677,1892.7,1892.6,3.2078]
[1742139582214,2.43127,1892.7,1892.6,4.5833]
[1742139582416,2.43127,1892.7,1892.6,3.2078]
[1742139582606,1.05688,1892.5,1892.4,4.2647]
[1742139583212,1.77266,1892.6,1892.5,1.05688]
[1742139583416,1.77263,1892.6,1892.5,1.05688]
[1742139583724,0.7158,1892.6,1892.5,1.05688]
[1742139583907,0.7158,1892.6,1892.5,2.45058]
[1742139584106,2.1218,1892.6,1892.5,2.45058]
[1742139584517,3.17863,1892.6,1892.5,2.45058]
[1742139584716,2.1218,1892.6,1892.5,2.45058]
[1742139585918,0.7288,1892.9,1892.7,1.05675]
[1742139586118,2.0871,1892.8,1892.7,1.05675]
[1742139587314,2.0871,1892.8,1892.6,4.6276]
[1742139587315,1.05677,1892.7,1892.6,4.26458]
[1742139587517,2.45047,1892.7,1892.6,4.26458]
[1742139588025,1.3937,1892.7,1892.6,4.26458]
[1742139588223,2.45047,1892.7,1892.6,4.26458]
[1742139588424,2.45047,1892.7,1892.6,1.05678]
[1742139588817,1.3937,1892.7,1892.4,3.2078]
[1742139589127,1.05688,1892.5,1892.4,4.26469]
[1742139589527,1.72738,1892.5,1892.4,4.26469]
[1742139589922,1.05694,1892.4,1892.3,1.06226276]
[1742139590227,3.07454,1892.4,1892.3,1.06226276]
[1742139590531,2.0176,1892.4,1892.3,1.06226276]
[1742139592028,2.0176,1892.4,1892.3,4.27006276]
[1742139597028,3.07454,1892.4,1892.3,4.27006276]
[1742139598034,3.07454,1892.4,1892.3,0.00528276]
[1742139598223,1.05716,1892.0,1891.9,4.26499619]
[1742139598425,3.97047,1892.3,1891.9,4.26502]
[1742139598738,1.05711,1892.1,1892.0,1.05716]
[1742139599531,1.35362414,1892.2,1891.9,3.2078]
[1742139599728,1.05712,1892.1,1892.0,1.05712]
[1742139599922,1.05712,1892.1,1891.9,4.26496]
[1742139600127,3.12346,1892.0,1891.9,4.26496]
[1742139600328,3.12348,1892.0,1891.9,1.05722]
[1742139600529,1.05724,1891.9,1891.7,3.2078]
[1742139600730,2.40294,1891.9,1891.7,3.2078]
[1742139600930,2.40294,1891.9,1891.8,1.3842]
[1742139601136,1.05724,1891.9,1891.8,1.3842]
[1742139601339,1.74934,1891.9,1891.8,1.3842]
[1742139601538,0.6921,1891.9,1891.8,2.44147]
[1742139605232,1.74932,1891.9,1891.8,2.44147]
[1742139605433,0.6921,1891.9,1891.8,2.44147]
[1742139605635,1.74932,1891.9,1891.8,1.3842]
[1742139605834,1.74932,1891.9,1891.8,2.44147]
[1742139607343,0.7206,1892.0,1891.9,1.05722]
[1742139607541,0.7206,1892.0,1891.9,2.38132]
[1742139608240,0.701,1892.1,1892.0,1.05716]
[1742139608440,0.00792414,1892.2,1892.0,1.3721]
[1742139608642,1.05711,1892.1,1892.0,1.3721]
[1742139609039,0.6861,1892.1,1892.0,2.42926]
[1742139609844,1.74321,1892.1,1892.0,2.42926]
[1742139610046,0.6861,1892.1,1892.0,2.42926]
[1742139611447,0.6861,1892.1,1891.9,3.2078]
[1742139611448,1.05716,1892.0,1891.9,3.2078]
[1742139611636,1.05728,1891.8,1891.7,4.2651]
[1742139612041,1.05728,1891.8,1891.7,5.6393]
[1742139612241,1.05728,1891.8,1891.7,3.2078]
[1742139612439,1.05733,1891.7,1891.6,6.19e-06]
[1742139612643,6.55371,1892.0,1891.6,1.05739619]
[1742139612841,1.05724,1891.9,1891.8,1.05724]
[1742139613249,1.05727,1891.8,1891.7,1.05729]
[1742139613843,3.9108,1892.0,1891.8,1.05724]
[1742139613844,1.05724,1891.9,1891.8,1.05724]
[1742139614148,0.703,1892.0,1891.9,1.05722]
[1742139615144,0.6861,1892.1,1892.0,1.05716]
[1742139615336,1.75010414,1892.2,1892.1,1.05711]
[1742139615541,0.69302414,1892.2,1892.1,1.05711]
[1742139615741,1.75010414,1892.2,1892.1,1.05711]
[1742139616643,0.69302414,1892.2,1892.1,1.05711]
[1742139616838,0.00792414,1892.2,1892.1,1.05711]
[1742139617039,0.00792414,1892.2,1892.1,2.51281]
[1742139617644,0.6851,1892.5,1892.4,1.05694]
[1742139617839,0.6851,1892.5,1892.4,4.26474]
[1742139618444,0.6851,1892.5,1892.4,5.72044]
[1742139619550,0.00792414,1892.6,1892.4,5.72044]
[1742139619551,0.00792414,1892.6,1892.5,1.05688]
[1742139619750,0.00792414,1892.6,1892.5,2.41628]
[1742139620846,1.43842414,1892.6,1892.5,2.41628]
[1742139621444,0.00792414,1892.6,1892.5,2.41628]
[1742139621646,0.00792414,1892.6,1892.5,5.94228]
[1742139623856,1.45352414,1892.6,1892.5,5.94228]
[1742139624758,2.51035414,1892.6,1892.5,5.94228]
[1742139624948,7.30343414,1892.6,1892.1,6.73380619]
[1742139625151,1.05711,1892.1,1892.0,0.00792414]
[1742139625758,1.05721,1892.0,1891.8,1.05723]
[1742139626060,2.38961,1892.0,1891.9,1.05722]
[1742139627165,1.3324,1892.0,1891.9,1.05722]
[1742139628063,1.429,1892.2,1892.1,1.05711]
[1742139628365,2.7614,1892.2,1892.1,1.05711]
[1742139628764,2.7614,1892.2,1892.1,4.26491]
[1742139629270,4.58293,1892.5,1892.4,1.05694]
[1742139629569,6.57423,1892.5,1892.4,1.05694]
[1742139629765,3.04823,1892.5,1892.4,1.05694]
[1742139630172,1.9913,1892.5,1892.4,1.05694]
[1742139630672,3.04818,1892.5,1892.4,1.05694]
[1742139630971,1.9913,1892.5,1892.4,1.05694]
[1742139631669,1.06475414,1892.6,1892.5,1.05688]
[1742139631871,1.05689,1892.5,1892.4,1.0569]
[1742139633107,1.4063,1892.5,1892.4,2.4212]
[1742139633305,2.46318,1892.5,1892.4,2.4212]
[1742139633551,1.05694,1892.4,1892.3,4.26478]
[1742139633791,1.4063,1892.4,1892.3,5.62908]
[1742139634196,0.69542414,1892.6,1892.5,1.05688]
[1742139634798,1.75225414,1892.6,1892.5,1.05688]
[1742139635610,0.69542414,1892.6,1892.5,1.05688]
[1742139635901,2.04482414,1892.6,1892.5,1.05688]
[1742139636335,1.35732414,1892.6,1892.5,1.05688]
[1742139636696,0.00792414,1892.6,1892.5,2.39298]
[1742139637209,0.00792414,1892.6,1892.5,5.60078]
[1742139637506,0.00792414,1892.6,1892.5,9.12678]
[1742139637902,0.6855,1892.9,1892.8,1.05672]
[1742139637903,2.0349,1892.9,1892.8,1.05672]
[1742139638101,1.77165,1893.0,1892.9,1.05666]
[1742139638714,3.19755,1893.0,1892.9,1.05666]
[1742139639512,3.19755,1893.0,1892.9,2.40976]
[1742139639810,2.1409,1893.0,1892.9,2.40976]
[1742139640021,3.1975,1893.0,1892.9,2.40976]
[1742139640205,3.1975,1893.0,1892.9,1.3531]
[1742139640605,1.05666,1892.9,1892.8,0.00792414]
[1742139640798,2.48256,1892.9,1892.8,0.00792414]
[1742139642416,2.48256,1892.9,1892.8,1.06464414]
[1742139646110,2.48256,1892.9,1892.8,2.49364414]
[1742139647721,2.48256,1892.9,1892.8,1.06464414]
[1742139648311,2.48256,1892.9,1892.8,2.49084414]
[1742139649824,2.48256,1892.9,1892.8,1.43412414]
[1742139650925,10.6587,1892.9,1892.2,3.2078]
[1742139651108,1.05699,1892.3,1892.2,7.78982]
[1742139651324,1.05699,1892.3,1892.2,4.26482]
[1742139651821,1.05719,1892.0,1891.7,5.85113]
[1742139652013,1.05713,1892.1,1892.0,1.05711]
[1742139652527,1.75373,1892.1,1892.0,1.05711]
[1742139653021,1.33382414,1892.2,1892.1,1.05711]
[1742139653315,2.39087414,1892.2,1892.1,1.05711]
[1742139653517,0.00792414,1892.2,1892.1,1.05711]
[1742139654113,0.00792414,1892.2,1892.1,4.97291]
[1742139655439,1.77007,1892.6,1892.5,1.05688]
[1742139655623,3.16047,1892.6,1892.5,1.05688]
[1742139656071,2.1036,1892.6,1892.5,1.05688]
[1742139656211,1.0568,1892.7,1892.6,1.05681]
[1742139656619,2.40748414,1892.8,1892.7,1.05677]
[1742139657214,1.05677,1892.7,1892.6,1.05679]
[1742139658425,1.05683,1892.6,1892.5,4.27256414]
[1742139658608,1.05683,1892.6,1892.5,3.21572414]
[1742139658910,1.05683,1892.6,1892.5,0.00792414]
[1742139659111,2.39963,1892.6,1892.5,0.00792414]
[1742139659305,5.60743,1892.6,1892.5,0.00792414]
[1742139659999,2.39963,1892.6,1892.5,0.00792414]
[1742139661898,2.39963,1892.6,1892.5,1.06480414]
[1742139662897,2.39963,1892.6,1892.5,0.00792414]
[1742139663200,2.39963,1892.6,1892.5,1.06480414]
[1742139663601,5.60743,1892.6,1892.5,0.00792414]
[1742139663902,2.39963,1892.6,1892.5,0.00792414]
[1742139664688,5.60743,1892.6,1892.5,0.00792414]
[1742139664901,2.64239,1892.4,1892.0,3.2078]
[1742139665200,1.05711,1892.1,1892.0,4.26495]
[1742139666108,1.05711,1892.1,1892.0,3.2078]
[1742139667294,1.05711,1892.1,1892.0,4.26496]
[1742139667694,1.05707,1892.2,1892.1,1.05707]
[1742139668096,2.50107,1892.2,1892.1,1.05707]
[1742139668705,2.50107,1892.2,1892.0,4.26491]
[1742139668898,1.444,1892.2,1892.1,1.05711]
[1742139669496,1.05694,1892.4,1892.0,5.8507]
[1742139669704,2.0857,1892.5,1892.1,3.35047]
[1742139670017,1.05694,1892.4,1892.3,1.05696]
[1742139671401,1.05694,1892.4,1892.3,2.47656]
[1742139673208,3.14258,1892.5,1892.4,1.05694]
[1742139673406,2.0857,1892.5,1892.4,2.47334]
[1742139673596,3.14258,1892.5,1892.4,2.47334]
[1742139674607,1.05687,1892.6,1892.5,1.05688]
[1742139674810,2.48727,1892.7,1892.6,1.05682]
[1742139675101,1.4305,1892.7,1892.6,1.05682]
[1742139675309,2.50948414,1892.8,1892.7,1.05677]
[1742139676212,0.00792414,1892.8,1892.7,1.05677]
[1742139676411,0.00792414,1892.8,1892.7,2.40497]
[1742139682012,0.00792414,1892.8,1892.7,2.81941412]
[1742139682216,1.4243,1893.2,1893.1,1.05655]
[1742139682515,1.05632,1893.5,1893.4,1.05634]
[1742139682708,3.92022,1893.5,1893.4,1.05634]
[1742139683304,2.8639,1893.5,1893.4,1.05634]
[1742139683619,0.00792414,1893.6,1893.5,1.05632]
[1742139683815,1.44342414,1893.6,1893.5,1.05632]
[1742139684016,2.49969414,1893.6,1893.5,1.05632]
[1742139684409,1.44342414,1893.6,1893.4,1.4334]
[1742139684718,1.44342414,1893.6,1893.5,1.05632]
[1742139684915,1.44342414,1893.6,1893.5,1.73442]
[1742139685117,1.44342414,1893.6,1893.5,2.48972]
[1742139686314,0.00792414,1893.6,1893.5,2.48972]
[1742139689215,1.41252414,1893.6,1893.5,2.48972]
[1742139689614,2.46879414,1893.6,1893.4,6.7308]
[1742139689817,2.46879414,1893.6,1893.3,2.39032414]
[1742139689818,0.6598,1893.5,1893.3,2.39032414]
[1742139690020,1.4303,1893.4,1893.3,2.39032414]
[1742139691016,0.6598,1893.5,1893.4,1.05638]
[1742139691218,2.0901,1893.5,1893.4,2.38238]
[1742139692020,3.14645,1893.5,1893.4,1.05638]
[1742139692217,1.05638,1893.4,1893.3,1.33392414]
[1742139692413,3.20758,1893.4,1893.3,0.00792414]
[1742139692923,3.20758,1893.4,1893.3,1.06436414]
[1742139693232,3.20758,1893.4,1893.3,0.00792414]
[1742139693623,1.05666,1892.9,1892.8,3.20780619]
[1742139693839,1.05666,1892.9,1892.7,4.57973]
[1742139693840,2.64138,1893.1,1892.7,4.57977]
[1742139694039,1.387,1892.8,1892.7,1.05677]
[1742139694734,1.387,1892.8,1892.7,2.41637]
[1742139696028,1.75975,1893.1,1892.7,4.00153]
[1742139696228,1.3949,1893.0,1892.9,1.05661]
[1742139696430,1.3949,1893.0,1892.9,2.42221]
[1742139697444,2.1228,1893.2,1893.1,1.05655]
[1742139697744,3.17929,1893.2,1893.0,1.3656]
[1742139697945,1.78439,1893.2,1893.1,1.05655]
[1742139698544,1.05655,1893.1,1893.0,1.0566]
[1742139698760,0.7279,1893.2,1893.0,1.0566]
[1742139698931,0.7279,1893.2,1893.1,1.05655]
[1742139699986,1.05655,1893.1,1893.0,1.3612]
[1742139700246,1.78443,1893.2,1893.1,1.05655]
[1742139700446,1.05655,1893.1,1893.0,2.41776]
[1742139701745,3.36914,1893.2,1892.8,3.20780619]
[1742139702043,1.05664,1893.0,1892.9,1.05665]